[Event "*** Titled Tuesday Blitz"]
[Site "Chess.com"]
[Date "2021.02.16"]
[Round "2"]
[White "Shuvalov"]
[Black "politeplayer"]
[Result "1-0"]
[WhiteElo "2510"]
[BlackElo "2205"]
[TimeControl "180+1"]
[EndTime "10:19:32 PST"]
[Termination "Shuvalov won on time"]

1. Nf3 {[%clk 0:02:53.7]} 1... Nf6 {[%clk 0:02:57.7]} 2. c4 {[%clk 0:02:53.2]}
2... e6 {[%clk 0:02:57.8]} 3. g3 {[%clk 0:02:52.7]} 3... d5 {[%clk 0:02:57.5]}
4. Bg2 {[%clk 0:02:52.9]} 4... c5 {[%clk 0:02:57.1]} 5. O-O {[%clk 0:02:52.8]}
5... Nc6 {[%clk 0:02:57.1]} 6. cxd5 {[%clk 0:02:51.5]} 6... exd5 {[%clk
0:02:56.3]} 7. d4 {[%clk 0:02:51.7]} 7... Be7 {[%clk 0:02:56.8]} 8. Nc3 {[%clk
0:02:51.2]} 8... O-O {[%clk 0:02:55.7]} 9. dxc5 {[%clk 0:02:49.1]} 9... Bxc5
{[%clk 0:02:54.9]} 10. Na4 {[%clk 0:02:49]} 10... Be7 {[%clk 0:02:50.5]} 11. Be3
{[%clk 0:02:48.3]} 11... Bg4 {[%clk 0:02:46.6]} 12. Rc1 {[%clk 0:02:38.1]} 12...
Re8 {[%clk 0:02:43.9]} 13. Nc5 {[%clk 0:02:36.1]} 13... Qb6 {[%clk 0:02:39.9]}
14. Ne6 {[%clk 0:02:12.3]} 14... Qxb2 {[%clk 0:02:24]} 15. Nc7 {[%clk
0:02:09.4]} 15... Qxa2 {[%clk 0:02:11.6]} 16. Nxa8 {[%clk 0:02:05.3]} 16... Rxa8
{[%clk 0:02:11.3]} 17. Ra1 {[%clk 0:01:47.2]} 17... Qc4 {[%clk 0:02:02]} 18. Qd2
{[%clk 0:01:43.4]} 18... Ne4 {[%clk 0:01:57.3]} 19. Qd3 {[%clk 0:01:40.8]} 19...
Nc3 {[%clk 0:01:10.9]} 20. Rfe1 {[%clk 0:01:21.1]} 20... Nb4 {[%clk 0:00:54.9]}
21. Qxc4 {[%clk 0:01:09.9]} 21... dxc4 {[%clk 0:00:54.8]} 22. Rxa7 {[%clk
0:01:09.9]} 22... Rxa7 {[%clk 0:00:45.1]} 23. Bxa7 {[%clk 0:01:10.8]} 23... Nc2
{[%clk 0:00:44.4]} 24. Rf1 {[%clk 0:01:03.2]} 24... Nxe2+ {[%clk 0:00:41.5]} 25.
Kh1 {[%clk 0:01:03.4]} 25... b5 {[%clk 0:00:32.2]} 26. Ne5 {[%clk 0:01:00.6]}
26... Be6 {[%clk 0:00:28.2]} 27. Nc6 {[%clk 0:00:58.6]} 27... Bf6 {[%clk
0:00:21.8]} 28. Be4 {[%clk 0:00:54]} 28... Ncd4 {[%clk 0:00:15.3]} 29. Nxd4
{[%clk 0:00:52]} 29... Nxd4 {[%clk 0:00:15.1]} 30. Rd1 {[%clk 0:00:44.1]} 30...
Nb3 {[%clk 0:00:09.3]} 31. Bd5 {[%clk 0:00:34.4]} 31... Bxd5+ {[%clk 0:00:08]}
32. Rxd5 {[%clk 0:00:35.3]} 32... g6 {[%clk 0:00:02.4]} 33. Rxb5 {[%clk
0:00:34.5]} 33... Kg7 {[%clk 0:00:02.6]} 34. Be3 {[%clk 0:00:31.1]} 34... Nd4
{[%clk 0:00:01.9]} 35. Rc5 {[%clk 0:00:29.3]} 35... Nf5 {[%clk 0:00:01.5]} 36.
Rxc4 {[%clk 0:00:29.3]} 36... Nxe3 {[%clk 0:00:01.6]} 37. fxe3 {[%clk
0:00:30.2]} 37... h5 {[%clk 0:00:01.7]} 38. Kg2 {[%clk 0:00:30]} 38... Bg5
{[%clk 0:00:02.2]} 39. Kf3 {[%clk 0:00:30.1]} 39... Bf6 {[%clk 0:00:02.5]} 40.
Rc7 {[%clk 0:00:29.2]} 40... Bg5 {[%clk 0:00:02.5]} 41. Rb7 {[%clk 0:00:29.1]}
41... h4 {[%clk 0:00:02.8]} 42. g4 {[%clk 0:00:27.2]} 42... Bf6 {[%clk
0:00:02.8]} 43. h3 {[%clk 0:00:27.3]} 43... g5 {[%clk 0:00:03.1]} 44. Ke4 {[%clk
0:00:27.2]} 44... Kg6 {[%clk 0:00:03.1]} 45. Kd5 {[%clk 0:00:26.4]} 45... Bc3
{[%clk 0:00:02.6]} 46. e4 {[%clk 0:00:26.2]} 46... Bd2 {[%clk 0:00:02]} 47. Rb6+
{[%clk 0:00:25]} 47... Kg7 {[%clk 0:00:01.6]} 48. e5 {[%clk 0:00:24.9]} 48...
Bf4 {[%clk 0:00:01]} 49. Ke4 {[%clk 0:00:24.3]} 1-0

[Event "*** Titled Tuesday Blitz"]
[Site "Chess.com"]
[Date "2021.02.16"]
[Round "2"]
[White "pavelalexandru07"]
[Black "Rodchenkov_Vitalij"]
[Result "0-1"]
[WhiteElo "2323"]
[BlackElo "2581"]
[TimeControl "180+1"]
[EndTime "10:19:32 PST"]
[Termination "Rodchenkov_Vitalij won by resignation"]

1. e4 {[%clk 0:02:51.8]} 1... d5 {[%clk 0:02:59.9]} 2. exd5 {[%clk 0:02:51.8]}
2... Qxd5 {[%clk 0:03:00.1]} 3. Nc3 {[%clk 0:02:52.5]} 3... Qd6 {[%clk
0:03:00.3]} 4. d4 {[%clk 0:02:52.8]} 4... Nf6 {[%clk 0:02:59.4]} 5. Nf3 {[%clk
0:02:53.4]} 5... a6 {[%clk 0:02:58.9]} 6. Be3 {[%clk 0:02:51.5]} 6... Bf5 {[%clk
0:02:55.3]} 7. Bd3 {[%clk 0:02:49.8]} 7... Bg6 {[%clk 0:02:54]} 8. Ne5 {[%clk
0:02:45.5]} 8... Nc6 {[%clk 0:02:52.8]} 9. Nxc6 {[%clk 0:02:26.2]} 9... Qxc6
{[%clk 0:02:51.4]} 10. f3 {[%clk 0:02:09.4]} 10... O-O-O {[%clk 0:02:49.2]} 11.
Qe2 {[%clk 0:02:09.3]} 11... e6 {[%clk 0:02:40.3]} 12. O-O-O {[%clk 0:02:08.2]}
12... Bb4 {[%clk 0:02:35.6]} 13. Ne4 {[%clk 0:02:08.1]} 13... Qa4 {[%clk
0:02:28]} 14. Kb1 {[%clk 0:02:00]} 14... Nd5 {[%clk 0:02:26.9]} 15. Bc1 {[%clk
0:01:53.4]} 15... Kb8 {[%clk 0:02:03.7]} 16. c4 {[%clk 0:01:48.3]} 16... Nb6
{[%clk 0:01:52.4]} 17. b3 {[%clk 0:00:55.5]} 17... Qe8 {[%clk 0:01:45.3]} 18.
Bb2 {[%clk 0:00:55.3]} 18... Be7 {[%clk 0:01:41.9]} 19. Rhe1 {[%clk 0:00:53.4]}
19... Ka7 {[%clk 0:01:34.9]} 20. Bc2 {[%clk 0:00:52.5]} 20... h5 {[%clk
0:01:28.6]} 21. Nf2 {[%clk 0:00:21.7]} 21... Bxc2+ {[%clk 0:01:27.2]} 22. Qxc2
{[%clk 0:00:22.6]} 22... h4 {[%clk 0:01:26.1]} 23. Ne4 {[%clk 0:00:20]} 23...
Qc6 {[%clk 0:01:21]} 24. Nf2 {[%clk 0:00:18.3]} 24... Rh5 {[%clk 0:01:19]} 25.
d5 {[%clk 0:00:17.5]} 25... Qc5 {[%clk 0:01:02.1]} 26. Ne4 {[%clk 0:00:12.9]}
26... Qa5 {[%clk 0:00:54.7]} 27. dxe6 {[%clk 0:00:11.3]} 27... Rxd1+ {[%clk
0:00:50.2]} 28. Rxd1 {[%clk 0:00:11.3]} 28... fxe6 {[%clk 0:00:50.2]} 29. Bc3
{[%clk 0:00:07.3]} 29... Qf5 {[%clk 0:00:48.9]} 30. Bxg7 {[%clk 0:00:07]} 30...
Qg6 {[%clk 0:00:48.1]} 31. Bd4 {[%clk 0:00:06.7]} 31... c5 {[%clk 0:00:47.2]}
32. Bg1 {[%clk 0:00:05.9]} 32... h3 {[%clk 0:00:46.1]} 33. g3 {[%clk 0:00:05.8]}
33... Rf5 {[%clk 0:00:43.1]} 34. f4 {[%clk 0:00:05.6]} 34... e5 {[%clk
0:00:37.8]} 35. Nxc5 {[%clk 0:00:05.5]} 35... exf4 {[%clk 0:00:35.2]} 36. Nd7
{[%clk 0:00:05.9]} 36... Bd8 {[%clk 0:00:32.9]} 37. Nxb6 {[%clk 0:00:05.4]}
37... Bxb6 {[%clk 0:00:32.7]} 38. Bxb6+ {[%clk 0:00:06]} 38... Kxb6 {[%clk
0:00:32.9]} 39. Rd5 {[%clk 0:00:03.1]} 39... Rf6 {[%clk 0:00:20.3]} 40. Qxg6
{[%clk 0:00:03.1]} 40... Rxg6 {[%clk 0:00:20.5]} 41. gxf4 {[%clk 0:00:03.7]}
41... Rg2 {[%clk 0:00:20.7]} 42. Rd1 {[%clk 0:00:02.8]} 42... Rxh2 {[%clk
0:00:20.5]} 43. f5 {[%clk 0:00:03.1]} 43... Rf2 {[%clk 0:00:20.6]} 44. Rd6+
{[%clk 0:00:02.7]} 44... Kc5 {[%clk 0:00:20.4]} 45. Rh6 {[%clk 0:00:02.2]} 45...
h2 {[%clk 0:00:20.6]} 46. f6 {[%clk 0:00:01.9]} 46... Rf1+ {[%clk 0:00:20.9]}
47. Kb2 {[%clk 0:00:02.2]} 47... h1=Q {[%clk 0:00:21.8]} 48. Rxh1 {[%clk
0:00:02]} 48... Rxh1 {[%clk 0:00:22.2]} 49. f7 {[%clk 0:00:02.3]} 49... Rf1
{[%clk 0:00:23.1]} 0-1

[Event "*** Titled Tuesday Blitz"]
[Site "Chess.com"]
[Date "2021.02.16"]
[Round "2"]
[White "Kotofeyca"]
[Black "Kale36"]
[Result "1-0"]
[WhiteElo "2443"]
[BlackElo "2217"]
[TimeControl "180+1"]
[EndTime "10:19:33 PST"]
[Termination "Kotofeyca won by resignation"]

1. d4 {[%clk 0:03:00.9]} 1... Nc6 {[%clk 0:02:59]} 2. c4 {[%clk 0:03:01.2]} 2...
e5 {[%clk 0:02:58.5]} 3. d5 {[%clk 0:03:01.5]} 3... Nce7 {[%clk 0:02:58.2]} 4.
h4 {[%clk 0:03:00.3]} 4... h5 {[%clk 0:02:57.5]} 5. Nf3 {[%clk 0:02:58.1]} 5...
Ng6 {[%clk 0:02:56.1]} 6. Ng5 {[%clk 0:02:53.6]} 6... Nf6 {[%clk 0:02:51.3]} 7.
g3 {[%clk 0:02:48.1]} 7... Bc5 {[%clk 0:02:50.5]} 8. Nc3 {[%clk 0:02:43.5]} 8...
d6 {[%clk 0:02:47]} 9. e3 {[%clk 0:02:39.5]} 9... Bg4 {[%clk 0:02:42.4]} 10. f3
{[%clk 0:02:37.5]} 10... Bd7 {[%clk 0:02:41.7]} 11. Bh3 {[%clk 0:02:28.3]} 11...
Qe7 {[%clk 0:02:28.1]} 12. Bxd7+ {[%clk 0:02:23.8]} 12... Qxd7 {[%clk
0:02:26.5]} 13. a3 {[%clk 0:02:09.6]} 13... a6 {[%clk 0:02:24]} 14. b4 {[%clk
0:02:07.7]} 14... Ba7 {[%clk 0:02:23.8]} 15. Qd3 {[%clk 0:02:02.8]} 15... O-O
{[%clk 0:02:20.9]} 16. e4 {[%clk 0:01:56.1]} 16... Nh7 {[%clk 0:01:59.7]} 17.
Nxh7 {[%clk 0:01:42.1]} 17... Kxh7 {[%clk 0:01:59.5]} 18. Be3 {[%clk 0:01:43]}
18... Bxe3 {[%clk 0:01:55.7]} 19. Qxe3 {[%clk 0:01:43.9]} 19... f5 {[%clk
0:01:56.1]} 20. Qg5 {[%clk 0:01:40.8]} 20... Qf7 {[%clk 0:01:22]} 21. Qxh5+
{[%clk 0:01:40.2]} 21... Kg8 {[%clk 0:01:22.2]} 22. O-O {[%clk 0:01:26.4]} 22...
f4 {[%clk 0:01:18.6]} 23. g4 {[%clk 0:01:20.3]} 23... Qf6 {[%clk 0:01:01.3]} 24.
g5 {[%clk 0:01:20.3]} 24... Qf7 {[%clk 0:01:00.2]} 25. Kf2 {[%clk 0:01:13]}
25... Ne7 {[%clk 0:00:52.6]} 26. Qxf7+ {[%clk 0:01:08]} 26... Kxf7 {[%clk
0:00:53.1]} 27. h5 {[%clk 0:00:50.4]} 27... Rh8 {[%clk 0:00:51.8]} 28. Rh1
{[%clk 0:00:50.5]} 28... g6 {[%clk 0:00:45]} 29. h6 {[%clk 0:00:46.4]} 29... Kg8
{[%clk 0:00:45.1]} 30. c5 {[%clk 0:00:45.6]} 30... Kh7 {[%clk 0:00:44.4]} 31.
Rhc1 {[%clk 0:00:43.6]} 31... Rhc8 {[%clk 0:00:41.3]} 32. Ra2 {[%clk 0:00:41.8]}
32... b6 {[%clk 0:00:41.6]} 33. Rac2 {[%clk 0:00:38.4]} 33... a5 {[%clk
0:00:36.8]} 34. cxd6 {[%clk 0:00:36.9]} 34... cxd6 {[%clk 0:00:36.5]} 35. Nb5
{[%clk 0:00:33.6]} 35... Rxc2+ {[%clk 0:00:27]} 36. Rxc2 {[%clk 0:00:34.5]}
36... Rc8 {[%clk 0:00:27.2]} 37. Rxc8 {[%clk 0:00:25.4]} 37... Nxc8 {[%clk
0:00:28.1]} 38. bxa5 {[%clk 0:00:22.2]} 38... bxa5 {[%clk 0:00:28]} 39. Ke2
{[%clk 0:00:21.7]} 39... Nb6 {[%clk 0:00:16.3]} 40. Nxd6 {[%clk 0:00:21]} 40...
Nd7 {[%clk 0:00:14.2]} 41. Nc4 {[%clk 0:00:20.3]} 41... a4 {[%clk 0:00:13.3]}
42. Kd3 {[%clk 0:00:20]} 42... Nc5+ {[%clk 0:00:12.8]} 43. Kc3 {[%clk
0:00:19.9]} 43... Nd7 {[%clk 0:00:10.8]} 44. Kb4 {[%clk 0:00:19.8]} 44... Kg8
{[%clk 0:00:09.5]} 45. Kxa4 {[%clk 0:00:19.9]} 45... Nc5+ {[%clk 0:00:09.7]} 46.
Kb5 {[%clk 0:00:19.5]} 46... Nxe4 {[%clk 0:00:10.6]} 47. fxe4 {[%clk 0:00:18.7]}
47... f3 {[%clk 0:00:10.9]} 48. Ne3 {[%clk 0:00:18.8]} 48... f2 {[%clk
0:00:11.4]} 49. Nf1 {[%clk 0:00:18.4]} 49... Kf7 {[%clk 0:00:10.4]} 50. d6
{[%clk 0:00:19.3]} 50... Ke6 {[%clk 0:00:10.4]} 51. h7 {[%clk 0:00:19.7]} 51...
Kxd6 {[%clk 0:00:10.2]} 52. h8=Q {[%clk 0:00:20.6]} 1-0

[Event "*** Titled Tuesday Blitz"]
[Site "Chess.com"]
[Date "2021.02.16"]
[Round "2"]
[White "Ekose"]
[Black "The_filthy"]
[Result "1/2-1/2"]
[WhiteElo "2630"]
[BlackElo "2335"]
[TimeControl "180+1"]
[EndTime "10:19:36 PST"]
[Termination "Game drawn by repetition"]

1. Nf3 {[%clk 0:03:00.9]} 1... d5 {[%clk 0:02:59.9]} 2. e3 {[%clk 0:02:58]} 2...
c6 {[%clk 0:03:00.2]} 3. c4 {[%clk 0:02:48.9]} 3... Nf6 {[%clk 0:02:59.8]} 4.
Nc3 {[%clk 0:02:48.7]} 4... g6 {[%clk 0:02:58.6]} 5. b3 {[%clk 0:02:47.2]} 5...
Bg7 {[%clk 0:02:58.6]} 6. Bb2 {[%clk 0:02:47.8]} 6... O-O {[%clk 0:02:58.7]} 7.
Be2 {[%clk 0:02:48.1]} 7... Bg4 {[%clk 0:02:46.9]} 8. O-O {[%clk 0:02:46.2]}
8... e6 {[%clk 0:02:46.1]} 9. h3 {[%clk 0:02:45.6]} 9... Bxf3 {[%clk 0:02:46]}
10. Bxf3 {[%clk 0:02:46.5]} 10... Nbd7 {[%clk 0:02:46.2]} 11. d3 {[%clk
0:02:46.3]} 11... Ne5 {[%clk 0:02:30.9]} 12. Be2 {[%clk 0:02:46]} 12... Re8
{[%clk 0:02:25.6]} 13. Qc2 {[%clk 0:02:46.1]} 13... Rc8 {[%clk 0:02:24.9]} 14.
Rad1 {[%clk 0:02:43.3]} 14... Qc7 {[%clk 0:02:15.7]} 15. Qb1 {[%clk 0:02:39.5]}
15... h5 {[%clk 0:02:08.6]} 16. Qa1 {[%clk 0:02:39.7]} 16... Ned7 {[%clk
0:02:06.2]} 17. Rc1 {[%clk 0:02:39]} 17... dxc4 {[%clk 0:02:04.8]} 18. dxc4
{[%clk 0:02:22.7]} 18... Nc5 {[%clk 0:02:01.1]} 19. b4 {[%clk 0:02:18.8]} 19...
Ncd7 {[%clk 0:01:58.4]} 20. Ne4 {[%clk 0:02:15.7]} 20... e5 {[%clk 0:01:38.9]}
21. Nxf6+ {[%clk 0:01:52.3]} 21... Nxf6 {[%clk 0:01:34.2]} 22. c5 {[%clk
0:01:53.2]} 22... Nd5 {[%clk 0:01:30.2]} 23. a3 {[%clk 0:01:53.1]} 23... Rcd8
{[%clk 0:01:29.4]} 24. Bc4 {[%clk 0:01:53.1]} 24... Qe7 {[%clk 0:01:15.4]} 25.
Rcd1 {[%clk 0:01:52.3]} 25... Qg5 {[%clk 0:01:09.8]} 26. Rfe1 {[%clk 0:01:31.6]}
26... h4 {[%clk 0:01:02.2]} 27. Kh1 {[%clk 0:01:09.1]} 27... Qf6 {[%clk
0:00:52.6]} 28. f4 {[%clk 0:01:00.1]} 28... Qe7 {[%clk 0:00:39]} 29. Bxd5 {[%clk
0:00:52.6]} 29... cxd5 {[%clk 0:00:33.8]} 30. Rc1 {[%clk 0:00:47.6]} 30... Qe6
{[%clk 0:00:23]} 31. b5 {[%clk 0:00:45.7]} 31... Qf5 {[%clk 0:00:20.2]} 32. c6
{[%clk 0:00:40.2]} 32... bxc6 {[%clk 0:00:21.1]} 33. bxc6 {[%clk 0:00:40.8]}
33... Rc8 {[%clk 0:00:18.6]} 34. Rc5 {[%clk 0:00:37.5]} 34... Qe4 {[%clk
0:00:15.4]} 35. fxe5 {[%clk 0:00:34.4]} 35... Bxe5 {[%clk 0:00:14.6]} 36. Bxe5
{[%clk 0:00:34.5]} 36... Rxe5 {[%clk 0:00:15.5]} 37. Qc3 {[%clk 0:00:30.6]}
37... Rg5 {[%clk 0:00:14.6]} 38. Re2 {[%clk 0:00:29.2]} 38... Rg3 {[%clk
0:00:13.3]} 39. Kh2 {[%clk 0:00:28.2]} 39... g5 {[%clk 0:00:07.5]} 40. Qd4
{[%clk 0:00:28.3]} 40... Qe6 {[%clk 0:00:06.8]} 41. Qxd5 {[%clk 0:00:26.4]}
41... Qxd5 {[%clk 0:00:06.1]} 42. Rxd5 {[%clk 0:00:26.6]} 42... Rxc6 {[%clk
0:00:07]} 43. Rd8+ {[%clk 0:00:25.4]} 43... Kg7 {[%clk 0:00:07.1]} 44. Rd7
{[%clk 0:00:25.8]} 44... Ra6 {[%clk 0:00:06.8]} 45. Rf2 {[%clk 0:00:25.8]} 45...
Rxa3 {[%clk 0:00:05.1]} 46. Rfxf7+ {[%clk 0:00:25.4]} 46... Kg6 {[%clk
0:00:05.4]} 47. Rde7 {[%clk 0:00:20.5]} 47... Ra2 {[%clk 0:00:05.4]} 48. Rg7+
{[%clk 0:00:21]} 48... Kf6 {[%clk 0:00:05.5]} 49. Rgf7+ {[%clk 0:00:19.7]} 49...
Kg6 {[%clk 0:00:05.8]} 50. Rg7+ {[%clk 0:00:15.5]} 50... Kf6 {[%clk 0:00:06.2]}
51. Rgf7+ {[%clk 0:00:16.1]} 51... Kg6 {[%clk 0:00:06.2]} 1/2-1/2

[Event "*** Titled Tuesday Blitz"]
[Site "Chess.com"]
[Date "2021.02.16"]
[Round "2"]
[White "francyIM"]
[Black "GM4life"]
[Result "1-0"]
[WhiteElo "2684"]
[BlackElo "2411"]
[TimeControl "180+1"]
[EndTime "10:19:37 PST"]
[Termination "francyIM won by checkmate"]

1. d4 {[%clk 0:02:59]} 1... Nf6 {[%clk 0:02:58.1]} 2. Nf3 {[%clk 0:02:56.2]}
2... d5 {[%clk 0:02:56.6]} 3. c4 {[%clk 0:02:50.8]} 3... e6 {[%clk 0:02:55.6]}
4. Nc3 {[%clk 0:02:48.4]} 4... c6 {[%clk 0:02:55.7]} 5. g3 {[%clk 0:02:40.7]}
5... dxc4 {[%clk 0:02:53.4]} 6. Bg2 {[%clk 0:02:40.2]} 6... Nbd7 {[%clk
0:02:51.6]} 7. O-O {[%clk 0:02:40.4]} 7... Be7 {[%clk 0:02:49.7]} 8. e4 {[%clk
0:02:40.1]} 8... O-O {[%clk 0:02:49.2]} 9. a4 {[%clk 0:02:39.4]} 9... c5 {[%clk
0:02:45.6]} 10. Qe2 {[%clk 0:02:36.8]} 10... cxd4 {[%clk 0:02:41.2]} 11. Nxd4
{[%clk 0:02:37.7]} 11... Ne5 {[%clk 0:02:40.2]} 12. Be3 {[%clk 0:02:35.7]} 12...
Nfg4 {[%clk 0:02:36.9]} 13. Rad1 {[%clk 0:02:21.9]} 13... Nxe3 {[%clk
0:02:36.7]} 14. Qxe3 {[%clk 0:02:17.5]} 14... Qb6 {[%clk 0:02:37.1]} 15. Qe2
{[%clk 0:02:12.2]} 15... Bc5 {[%clk 0:02:32.8]} 16. Nf3 {[%clk 0:01:58.6]} 16...
Nd3 {[%clk 0:02:24.3]} 17. Rd2 {[%clk 0:01:57.5]} 17... Rd8 {[%clk 0:02:06.5]}
18. Ne1 {[%clk 0:01:52.6]} 18... Ne5 {[%clk 0:01:49.2]} 19. Rxd8+ {[%clk
0:01:23.5]} 19... Qxd8 {[%clk 0:01:50.1]} 20. Nf3 {[%clk 0:01:15.9]} 20... Nd3
{[%clk 0:01:36.5]} 21. Rd1 {[%clk 0:01:09.8]} 21... Qb6 {[%clk 0:01:32.7]} 22.
a5 {[%clk 0:00:54.3]} 22... Bxf2+ {[%clk 0:01:08.6]} 23. Kf1 {[%clk 0:00:49.7]}
23... Qe3 {[%clk 0:01:07.8]} 24. Rxd3 {[%clk 0:00:49.5]} 24... cxd3 {[%clk
0:01:01.1]} 25. Qxf2 {[%clk 0:00:48.5]} 25... Qc1+ {[%clk 0:00:59.6]} 26. Qe1
{[%clk 0:00:38.2]} 26... Qxb2 {[%clk 0:00:57.1]} 27. Qd2 {[%clk 0:00:38]} 27...
Qa1+ {[%clk 0:00:55.7]} 28. Kf2 {[%clk 0:00:30.7]} 28... Qxa5 {[%clk 0:00:46.4]}
29. Qxd3 {[%clk 0:00:29.2]} 29... Qc5+ {[%clk 0:00:46.2]} 30. Ke2 {[%clk
0:00:23.6]} 30... h6 {[%clk 0:00:42.6]} 31. e5 {[%clk 0:00:22.5]} 31... a5
{[%clk 0:00:31.8]} 32. Ne4 {[%clk 0:00:17.7]} 32... Qd5 {[%clk 0:00:25.3]} 33.
Nd4 {[%clk 0:00:11.5]} 33... Qa2+ {[%clk 0:00:23.5]} 34. Kf3 {[%clk 0:00:10.8]}
34... Bd7 {[%clk 0:00:20.3]} 35. Nc3 {[%clk 0:00:10.8]} 35... Qb2 {[%clk
0:00:17.8]} 36. Bf1 {[%clk 0:00:10.5]} 36... Rc8 {[%clk 0:00:16]} 37. Nd1 {[%clk
0:00:09.9]} 37... Qxh2 {[%clk 0:00:14.1]} 38. Qe4 {[%clk 0:00:08.3]} 38... Qh5+
{[%clk 0:00:13.7]} 39. Kg2 {[%clk 0:00:07.2]} 39... Qxd1 {[%clk 0:00:12.6]} 40.
Bd3 {[%clk 0:00:07.7]} 40... g6 {[%clk 0:00:11.3]} 41. Kf2 {[%clk 0:00:08.1]}
41... Bc6 {[%clk 0:00:11]} 42. Qe3 {[%clk 0:00:07.3]} 42... Qh1 {[%clk
0:00:09.5]} 43. Ne2 {[%clk 0:00:06.7]} 43... Qg2+ {[%clk 0:00:09.3]} 44. Ke1
{[%clk 0:00:06.6]} 44... Bd5 {[%clk 0:00:09.6]} 45. Qxh6 {[%clk 0:00:06.8]}
45... Qf3 {[%clk 0:00:05.2]} 46. Bxg6 {[%clk 0:00:06.5]} 46... f6 {[%clk
0:00:03.2]} 47. Qh7+ {[%clk 0:00:06.5]} 47... Kf8 {[%clk 0:00:03.2]} 48. Qf7#
{[%clk 0:00:07.4]} 1-0

[Event "*** Titled Tuesday Blitz"]
[Site "Chess.com"]
[Date "2021.02.16"]
[Round "2"]
[White "Ermito2020"]
[Black "Novoselski"]
[Result "0-1"]
[WhiteElo "2595"]
[BlackElo "2319"]
[TimeControl "180+1"]
[EndTime "10:19:37 PST"]
[Termination "Novoselski won on time"]

1. e4 {[%clk 0:03:00.5]} 1... e5 {[%clk 0:02:58.9]} 2. Nf3 {[%clk 0:03:00.4]}
2... Nc6 {[%clk 0:02:58]} 3. d4 {[%clk 0:03:00.4]} 3... exd4 {[%clk 0:02:56.9]}
4. Nxd4 {[%clk 0:03:01.3]} 4... Nf6 {[%clk 0:02:55]} 5. Nxc6 {[%clk 0:02:59.2]}
5... bxc6 {[%clk 0:02:54.1]} 6. e5 {[%clk 0:03:00.1]} 6... Qe7 {[%clk
0:02:50.8]} 7. Qe2 {[%clk 0:02:59.6]} 7... Nd5 {[%clk 0:02:50.7]} 8. h4 {[%clk
0:02:57.2]} 8... f6 {[%clk 0:02:39.7]} 9. c4 {[%clk 0:02:56.2]} 9... Ba6 {[%clk
0:02:29.5]} 10. Rh3 {[%clk 0:02:53.4]} 10... fxe5 {[%clk 0:02:23.9]} 11. Bg5
{[%clk 0:02:26.4]} 11... Nf6 {[%clk 0:02:08.5]} 12. Nd2 {[%clk 0:01:52.6]} 12...
Qe6 {[%clk 0:01:45.5]} 13. Re3 {[%clk 0:01:31.8]} 13... d6 {[%clk 0:01:42.8]}
14. f4 {[%clk 0:01:23]} 14... Nd7 {[%clk 0:01:36]} 15. g4 {[%clk 0:01:15.8]}
15... h6 {[%clk 0:01:31.3]} 16. fxe5 {[%clk 0:01:07]} 16... dxe5 {[%clk
0:01:30.2]} 17. Bf4 {[%clk 0:01:05.6]} 17... Bd6 {[%clk 0:01:27.7]} 18. Bg2
{[%clk 0:01:03.5]} 18... O-O-O {[%clk 0:01:19.7]} 19. Bg3 {[%clk 0:00:50.2]}
19... e4 {[%clk 0:01:06.7]} 20. Bxd6 {[%clk 0:00:43.5]} 20... Qxd6 {[%clk
0:01:04.4]} 21. Bxe4 {[%clk 0:00:32.5]} 21... Nc5 {[%clk 0:00:46.9]} 22. Bf5+
{[%clk 0:00:30.7]} 22... Kb8 {[%clk 0:00:46.4]} 23. O-O-O {[%clk 0:00:31.3]}
23... g6 {[%clk 0:00:41.6]} 24. Bc2 {[%clk 0:00:27.9]} 24... Bc8 {[%clk
0:00:32.5]} 25. Nb3 {[%clk 0:00:26.8]} 25... Qf6 {[%clk 0:00:25.1]} 26. Nxc5
{[%clk 0:00:24]} 26... Rxd1+ {[%clk 0:00:19.9]} 27. Bxd1 {[%clk 0:00:23.8]}
27... Qf4 {[%clk 0:00:15.4]} 28. Kb1 {[%clk 0:00:21.2]} 28... Rd8 {[%clk
0:00:13.7]} 29. Bc2 {[%clk 0:00:16.9]} 29... Qd4 {[%clk 0:00:10.8]} 30. Rb3+
{[%clk 0:00:16.1]} 30... Ka8 {[%clk 0:00:09.9]} 31. Ne4 {[%clk 0:00:16.5]} 31...
Qg1+ {[%clk 0:00:09.4]} 32. Bd1 {[%clk 0:00:14.7]} 32... Bxg4 {[%clk 0:00:10.3]}
33. Qxg4 {[%clk 0:00:09.1]} 33... Rxd1+ {[%clk 0:00:11.2]} 34. Kc2 {[%clk
0:00:08.5]} 34... Qxg4 {[%clk 0:00:11]} 35. Nc5 {[%clk 0:00:05.2]} 35... Qxc4+
{[%clk 0:00:09.6]} 36. Kxd1 {[%clk 0:00:05.3]} 36... Qxc5 {[%clk 0:00:09.6]} 37.
Rc3 {[%clk 0:00:06.2]} 37... Qd5+ {[%clk 0:00:09.4]} 38. Kc2 {[%clk 0:00:06.9]}
38... Qxa2 {[%clk 0:00:09.4]} 39. Rxc6 {[%clk 0:00:07.1]} 39... Qd5 {[%clk
0:00:09.8]} 40. Rc4 {[%clk 0:00:06.4]} 40... Qxc4+ {[%clk 0:00:09.7]} 0-1